[Event "Late-Titled-Tuesday-Blitz-March-05-2024"]
[Site "Chess.com"]
[Date "2024.03.05"]
[Round "4"]
[White "Zavgorodniy_Sergiy"]
[Black "Hudijegszid"]
[Result "1-0"]
[WhiteElo "2624"]
[BlackElo "2350"]
[TimeControl "180+1"]
[EndTime "14:38:04 PST"]
[Termination "Zavgorodniy_Sergiy won by resignation"]

1. d4 {[%clk 0:03:00.9]} 1... Nf6 {[%clk 0:02:58]} 2. c4 {[%clk 0:03:01]} 2...
e6 {[%clk 0:02:58.3]} 3. Nf3 {[%clk 0:03:01.2]} 3... b6 {[%clk 0:02:55.5]} 4. g3
{[%clk 0:03:00.7]} 4... Ba6 {[%clk 0:02:53.4]} 5. Nbd2 {[%clk 0:02:59.9]} 5...
Bb4 {[%clk 0:02:49.9]} 6. Qc2 {[%clk 0:02:59.9]} 6... Bb7 {[%clk 0:02:48.6]} 7.
Bg2 {[%clk 0:03:00]} 7... Be4 {[%clk 0:02:37.4]} 8. Qd1 {[%clk 0:02:59.9]} 8...
O-O {[%clk 0:02:35.3]} 9. O-O {[%clk 0:03:00]} 9... Bxd2 {[%clk 0:02:31.1]} 10.
Qxd2 {[%clk 0:03:00.9]} 10... Nc6 {[%clk 0:02:28.4]} 11. b3 {[%clk 0:03:00.9]}
11... Rb8 {[%clk 0:02:23.9]} 12. Bb2 {[%clk 0:03:01]} 12... b5 {[%clk
0:02:18.4]} 13. Rac1 {[%clk 0:03:00.8]} 13... bxc4 {[%clk 0:02:12.4]} 14. Rxc4
{[%clk 0:03:01.7]} 14... Qe7 {[%clk 0:02:02.9]} 15. Rfc1 {[%clk 0:02:58.7]}
15... Rfc8 {[%clk 0:02:01.5]} 16. Ne1 {[%clk 0:02:57.2]} 16... Bxg2 {[%clk
0:01:59.7]} 17. Nxg2 {[%clk 0:02:58.1]} 17... Qd8 {[%clk 0:01:49.1]} 18. Nf4
{[%clk 0:02:57.9]} 18... Ne7 {[%clk 0:01:47.1]} 19. Qd3 {[%clk 0:02:55.4]} 19...
Ned5 {[%clk 0:01:43.3]} 20. Nxd5 {[%clk 0:02:53.7]} 20... exd5 {[%clk
0:01:41.3]} 21. Ra4 {[%clk 0:02:53.1]} 21... Rb7 {[%clk 0:01:35.4]} 22. Ba3
{[%clk 0:02:50.3]} 22... Qe8 {[%clk 0:01:24.8]} 23. Ra6 {[%clk 0:02:44.9]} 23...
c6 {[%clk 0:01:23.6]} 24. Bc5 {[%clk 0:02:44.3]} 24... Ra8 {[%clk 0:01:21.5]}
25. Bd6 {[%clk 0:02:35.1]} 25... Ne4 {[%clk 0:01:20.6]} 26. Bf4 {[%clk
0:02:34.9]} 26... g5 {[%clk 0:01:14.9]} 27. Be3 {[%clk 0:02:33.5]} 27... f6
{[%clk 0:01:11.2]} 28. f3 {[%clk 0:02:32.9]} 28... Nd6 {[%clk 0:01:10.4]} 29.
Bf2 {[%clk 0:02:33]} 29... Qg6 {[%clk 0:01:07.4]} 30. Qc3 {[%clk 0:02:22.3]}
30... Re8 {[%clk 0:01:04.3]} 31. Re1 {[%clk 0:02:22.3]} 31... g4 {[%clk
0:00:59.8]} 32. Qc5 {[%clk 0:02:18.5]} 32... f5 {[%clk 0:00:54.1]} 33. Rxa7
{[%clk 0:02:13.2]} 33... f4 {[%clk 0:00:45.2]} 34. Rxb7 {[%clk 0:02:05.3]} 34...
Nxb7 {[%clk 0:00:44.5]} 35. Qa7 {[%clk 0:02:02.8]} 35... fxg3 {[%clk 0:00:36.1]}
36. hxg3 {[%clk 0:01:59.3]} 36... Nd6 {[%clk 0:00:25.3]} 37. Qxd7 {[%clk
0:01:58.7]} 37... gxf3 {[%clk 0:00:25.4]} 38. exf3 {[%clk 0:01:58.5]} 38...
Rxe1+ {[%clk 0:00:24.7]} 39. Bxe1 {[%clk 0:01:59.4]} 39... Qb1 {[%clk
0:00:21.3]} 40. Qxd6 {[%clk 0:01:48.5]} 40... Qxe1+ {[%clk 0:00:20.6]} 41. Kg2
{[%clk 0:01:48.7]} 41... Qe2+ {[%clk 0:00:21.2]} 42. Kh3 {[%clk 0:01:48.7]}
42... Qxf3 {[%clk 0:00:22.1]} 43. Qd8+ {[%clk 0:01:42]} 43... Kg7 {[%clk
0:00:21.5]} 44. Qd7+ {[%clk 0:01:39]} 44... Kg8 {[%clk 0:00:21.9]} 45. Qg4+
{[%clk 0:01:38.7]} 45... Qxg4+ {[%clk 0:00:20.3]} 46. Kxg4 {[%clk 0:01:39.6]}
46... Kf7 {[%clk 0:00:19.1]} 47. Kg5 {[%clk 0:01:35.7]} 1-0

[Event "Late-Titled-Tuesday-Blitz-March-05-2024"]
[Site "Chess.com"]
[Date "2024.03.05"]
[Round "4"]
[White "CarlosjPineror"]
[Black "KuzubovYuriy"]
[Result "1-0"]
[WhiteElo "2753"]
[BlackElo "2932"]
[TimeControl "180+1"]
[EndTime "14:38:05 PST"]
[Termination "CarlosjPineror won by resignation"]

1. e4 {[%clk 0:03:00.9]} 1... e6 {[%clk 0:03:00.5]} 2. d3 {[%clk 0:02:55.7]}
2... d5 {[%clk 0:03:00.8]} 3. Nd2 {[%clk 0:02:56.6]} 3... Nf6 {[%clk 0:02:59.3]}
4. Ngf3 {[%clk 0:02:55.3]} 4... c5 {[%clk 0:02:57.4]} 5. g3 {[%clk 0:02:54.3]}
5... Nc6 {[%clk 0:02:57.9]} 6. Bg2 {[%clk 0:02:54.3]} 6... Be7 {[%clk
0:02:58.2]} 7. O-O {[%clk 0:02:54.1]} 7... b5 {[%clk 0:02:58.4]} 8. Re1 {[%clk
0:02:54.3]} 8... Bb7 {[%clk 0:02:56.8]} 9. c3 {[%clk 0:02:53.2]} 9... d4 {[%clk
0:02:46.2]} 10. cxd4 {[%clk 0:02:35]} 10... cxd4 {[%clk 0:02:43.7]} 11. e5
{[%clk 0:02:25.5]} 11... Nd5 {[%clk 0:02:43.1]} 12. h4 {[%clk 0:02:17.9]} 12...
Rc8 {[%clk 0:02:41.2]} 13. a3 {[%clk 0:02:17]} 13... Nb6 {[%clk 0:02:34.9]} 14.
Ne4 {[%clk 0:02:06.8]} 14... h6 {[%clk 0:02:33]} 15. h5 {[%clk 0:02:06.2]} 15...
Qc7 {[%clk 0:02:25.7]} 16. Bf4 {[%clk 0:02:00.6]} 16... Nd5 {[%clk 0:02:23.7]}
17. Nd6+ {[%clk 0:02:00.6]} 17... Bxd6 {[%clk 0:02:22.7]} 18. exd6 {[%clk
0:02:01.5]} 18... Qd8 {[%clk 0:01:53.8]} 19. Qd2 {[%clk 0:01:53.7]} 19... O-O
{[%clk 0:01:48.5]} 20. Rac1 {[%clk 0:01:39.7]} 20... Qd7 {[%clk 0:01:36.4]} 21.
Bxh6 {[%clk 0:01:23]} 21... gxh6 {[%clk 0:01:36]} 22. Qxh6 {[%clk 0:01:23.9]}
22... f6 {[%clk 0:01:23.6]} 23. Rxe6 {[%clk 0:01:04.2]} 23... Qxe6 {[%clk
0:00:29.9]} 24. Ng5 {[%clk 0:01:03.3]} 24... Rf7 {[%clk 0:00:09]} 25. Nxe6
{[%clk 0:01:02.7]} 25... Nd8 {[%clk 0:00:02.8]} 26. Rxc8 {[%clk 0:01:00.3]} 1-0

[Event "Late-Titled-Tuesday-Blitz-March-05-2024"]
[Site "Chess.com"]
[Date "2024.03.05"]
[Round "4"]
[White "lamomiajunior"]
[Black "Perecke"]
[Result "1-0"]
[WhiteElo "2717"]
[BlackElo "2541"]
[TimeControl "180+1"]
[EndTime "14:38:05 PST"]
[Termination "lamomiajunior won on time"]

1. d4 {[%clk 0:03:00.9]} 1... Nf6 {[%clk 0:02:59.7]} 2. c4 {[%clk 0:02:57.7]}
2... e6 {[%clk 0:02:59.8]} 3. Nc3 {[%clk 0:02:57.6]} 3... d5 {[%clk 0:02:58.3]}
4. cxd5 {[%clk 0:02:56.8]} 4... exd5 {[%clk 0:02:59.2]} 5. Bg5 {[%clk
0:02:56.5]} 5... Be7 {[%clk 0:02:59.8]} 6. e3 {[%clk 0:02:55.9]} 6... O-O {[%clk
0:02:59.8]} 7. Bd3 {[%clk 0:02:54]} 7... Re8 {[%clk 0:02:58.7]} 8. Qc2 {[%clk
0:02:53]} 8... h6 {[%clk 0:02:58.9]} 9. Bf4 {[%clk 0:02:51.2]} 9... c5 {[%clk
0:02:58.8]} 10. dxc5 {[%clk 0:02:43.8]} 10... Nc6 {[%clk 0:02:56.4]} 11. a3
{[%clk 0:02:40.5]} 11... d4 {[%clk 0:02:56]} 12. Rd1 {[%clk 0:02:40.3]} 12...
dxc3 {[%clk 0:02:54.8]} 13. Bh7+ {[%clk 0:02:36.1]} 13... Nxh7 {[%clk 0:02:55]}
14. Rxd8 {[%clk 0:02:36.3]} 14... Rxd8 {[%clk 0:02:49.8]} 15. Qxc3 {[%clk
0:02:32.4]} 15... Nf6 {[%clk 0:02:47.6]} 16. Qc2 {[%clk 0:02:28.3]} 16... Nd5
{[%clk 0:02:33.8]} 17. Bg3 {[%clk 0:02:27.5]} 17... Bg4 {[%clk 0:02:18.5]} 18.
Ne2 {[%clk 0:02:24.1]} 18... Ndb4 {[%clk 0:01:50.5]} 19. axb4 {[%clk 0:02:20.5]}
19... Nxb4 {[%clk 0:01:51.4]} 20. Qb3 {[%clk 0:02:16.1]} 20... Nd3+ {[%clk
0:01:45.9]} 21. Kf1 {[%clk 0:02:15.6]} 21... Nxc5 {[%clk 0:01:25]} 22. Qc2
{[%clk 0:02:15.3]} 22... Rac8 {[%clk 0:00:59.4]} 23. f3 {[%clk 0:02:14.4]} 23...
Nd3 {[%clk 0:00:46.5]} 24. Nc3 {[%clk 0:02:12]} 24... Be6 {[%clk 0:00:40.3]} 25.
h4 {[%clk 0:02:08.1]} 25... Bf6 {[%clk 0:00:39.7]} 26. Kg1 {[%clk 0:01:58.8]}
26... Nxb2 {[%clk 0:00:37.4]} 27. Qxb2 {[%clk 0:01:59.7]} 27... Rxc3 {[%clk
0:00:37]} 28. Qxb7 {[%clk 0:01:57]} 28... Rxe3 {[%clk 0:00:27.8]} 29. Kh2 {[%clk
0:01:50.5]} 29... a5 {[%clk 0:00:26.9]} 30. Qb6 {[%clk 0:01:48.2]} 30... Ra3
{[%clk 0:00:22.9]} 31. Re1 {[%clk 0:01:44.9]} 31... Ra2 {[%clk 0:00:20.3]} 32.
Rxe6 {[%clk 0:01:44.6]} 32... Rdd2 {[%clk 0:00:13.7]} 33. Re8+ {[%clk
0:01:43.6]} 33... Kh7 {[%clk 0:00:13.7]} 34. Qb1+ {[%clk 0:01:41.5]} 34... g6
{[%clk 0:00:13.3]} 35. h5 {[%clk 0:01:33.8]} 35... Rxg2+ {[%clk 0:00:12]} 36.
Kh3 {[%clk 0:01:34.4]} 36... Rgb2 {[%clk 0:00:03]} 37. hxg6+ {[%clk 0:01:34.2]}
37... fxg6 {[%clk 0:00:02.6]} 38. Qd3 {[%clk 0:01:34.2]} 38... Bg7 {[%clk
0:00:01.7]} 39. Qd5 {[%clk 0:01:32.9]} 39... h5 {[%clk 0:00:01.1]} 40. Bf4
{[%clk 0:01:31.9]} 1-0

[Event "Late-Titled-Tuesday-Blitz-March-05-2024"]
[Site "Chess.com"]
[Date "2024.03.05"]
[Round "4"]
[White "rionelG"]
[Black "katharinareinecke"]
[Result "1-0"]
[WhiteElo "2217"]
[BlackElo "1983"]
[TimeControl "180+1"]
[EndTime "14:38:07 PST"]
[Termination "rionelG won by resignation"]

1. e4 {[%clk 0:03:00.9]} 1... c6 {[%clk 0:02:58]} 2. d4 {[%clk 0:03:00]} 2... d5
{[%clk 0:02:54.6]} 3. Nc3 {[%clk 0:03:00.7]} 3... b5 {[%clk 0:02:48.9]} 4. exd5
{[%clk 0:02:39.4]} 4... b4 {[%clk 0:02:48.3]} 5. Nce2 {[%clk 0:02:39.1]} 5...
cxd5 {[%clk 0:02:48.3]} 6. Bd2 {[%clk 0:02:39.1]} 6... e6 {[%clk 0:02:47]} 7.
Nf3 {[%clk 0:02:36.7]} 7... Nc6 {[%clk 0:02:43.3]} 8. Ng3 {[%clk 0:02:35.6]}
8... Nf6 {[%clk 0:02:42]} 9. Bd3 {[%clk 0:02:34.4]} 9... Bd6 {[%clk 0:02:36]}
10. O-O {[%clk 0:02:33.8]} 10... O-O {[%clk 0:02:35.8]} 11. Re1 {[%clk
0:02:28.9]} 11... a5 {[%clk 0:02:25.9]} 12. Bg5 {[%clk 0:02:28.4]} 12... h6
{[%clk 0:02:17.9]} 13. Bh4 {[%clk 0:02:28.5]} 13... g5 {[%clk 0:02:09]} 14. Nxg5
{[%clk 0:02:29]} 14... hxg5 {[%clk 0:02:09.3]} 15. Bxg5 {[%clk 0:02:29.9]} 15...
Be7 {[%clk 0:02:00.7]} 16. Bxf6 {[%clk 0:02:25]} 16... Bxf6 {[%clk 0:02:00.6]}
17. Qh5 {[%clk 0:02:25.7]} 17... Re8 {[%clk 0:01:45.9]} 18. Qh7+ {[%clk
0:02:07.9]} 18... Kf8 {[%clk 0:01:45.4]} 19. Nh5 {[%clk 0:01:49]} 19... Nxd4
{[%clk 0:01:29.5]} 20. Qh6+ {[%clk 0:01:48.7]} 20... Ke7 {[%clk 0:00:56.4]} 21.
Qxf6+ {[%clk 0:01:47.9]} 21... Kd7 {[%clk 0:00:56.7]} 22. Qxd4 {[%clk
0:01:48.8]} 22... Kc7 {[%clk 0:00:46.1]} 23. c3 {[%clk 0:01:19.4]} 23... Qg5
{[%clk 0:00:41.8]} 24. Qc5+ {[%clk 0:01:10.3]} 24... Kb8 {[%clk 0:00:29]} 25.
Qb5+ {[%clk 0:01:09.4]} 25... Ka7 {[%clk 0:00:19.6]} 26. Qxe8 {[%clk 0:00:58.9]}
26... Bb7 {[%clk 0:00:18.9]} 27. Qb5 {[%clk 0:00:53.1]} 27... d4 {[%clk
0:00:16.3]} 28. Qxg5 {[%clk 0:00:50.7]} 1-0

[Event "Late-Titled-Tuesday-Blitz-March-05-2024"]
[Site "Chess.com"]
[Date "2024.03.05"]
[Round "4"]
[White "djano"]
[Black "aceontheturn"]
[Result "0-1"]
[WhiteElo "2565"]
[BlackElo "2793"]
[TimeControl "180+1"]
[EndTime "14:38:12 PST"]
[Termination "aceontheturn won by resignation"]

1. e4 {[%clk 0:03:00.9]} 1... e6 {[%clk 0:02:58.4]} 2. b3 {[%clk 0:03:00.2]}
2... d5 {[%clk 0:02:59.3]} 3. Bb2 {[%clk 0:03:00.5]} 3... Nc6 {[%clk 0:02:52.3]}
4. d3 {[%clk 0:02:58]} 4... d4 {[%clk 0:02:50.2]} 5. Nd2 {[%clk 0:02:56]} 5...
e5 {[%clk 0:02:50.3]} 6. Ngf3 {[%clk 0:02:50.1]} 6... f6 {[%clk 0:02:44.2]} 7.
g3 {[%clk 0:02:48.4]} 7... Be6 {[%clk 0:02:43.9]} 8. Bg2 {[%clk 0:02:48.6]} 8...
Nge7 {[%clk 0:02:43.1]} 9. O-O {[%clk 0:02:40.7]} 9... g5 {[%clk 0:02:43.4]} 10.
h4 {[%clk 0:02:27.7]} 10... h6 {[%clk 0:02:42.9]} 11. a3 {[%clk 0:02:17.6]}
11... Qd7 {[%clk 0:02:42.8]} 12. b4 {[%clk 0:02:17.2]} 12... Bg4 {[%clk
0:02:33.1]} 13. Qe1 {[%clk 0:02:09.9]} 13... Ng6 {[%clk 0:02:32.7]} 14. h5
{[%clk 0:02:00.9]} 14... Bxh5 {[%clk 0:02:29.7]} 15. b5 {[%clk 0:02:00.2]} 15...
Nd8 {[%clk 0:02:29.2]} 16. a4 {[%clk 0:01:48.9]} 16... Bg4 {[%clk 0:02:28.8]}
17. Nh2 {[%clk 0:01:43.4]} 17... Bh3 {[%clk 0:02:24.7]} 18. Qe2 {[%clk
0:01:32.1]} 18... h5 {[%clk 0:02:20.1]} 19. c3 {[%clk 0:01:24.9]} 19... Bxg2
{[%clk 0:02:02.5]} 20. Kxg2 {[%clk 0:01:24.5]} 20... Ne6 {[%clk 0:02:03.2]} 21.
Kh1 {[%clk 0:01:19.8]} 21... dxc3 {[%clk 0:01:56.7]} 22. Bxc3 {[%clk 0:01:20.7]}
22... Rd8 {[%clk 0:01:54]} 23. Qf3 {[%clk 0:01:11.5]} 23... Kf7 {[%clk
0:01:46.6]} 24. Nc4 {[%clk 0:01:00]} 24... Qxd3 {[%clk 0:01:37.8]} 25. Rac1
{[%clk 0:00:30.5]} 25... Qxf3+ {[%clk 0:01:26.9]} 26. Nxf3 {[%clk 0:00:31.4]}
26... g4 {[%clk 0:01:21.3]} 27. Nh2 {[%clk 0:00:25.3]} 27... h4 {[%clk
0:01:10.9]} 28. Nxg4 {[%clk 0:00:20.8]} 28... hxg3+ {[%clk 0:01:10]} 29. Kg1
{[%clk 0:00:21.4]} 29... g2 {[%clk 0:00:54.4]} 30. Kxg2 {[%clk 0:00:20.8]} 30...
Ngf4+ {[%clk 0:00:55.1]} 31. Kg1 {[%clk 0:00:19]} 31... Ne2+ {[%clk 0:00:55.1]}
32. Kg2 {[%clk 0:00:19]} 32... N6f4+ {[%clk 0:00:55.7]} 0-1

[Event "Late-Titled-Tuesday-Blitz-March-05-2024"]
[Site "Chess.com"]
[Date "2024.03.05"]
[Round "4"]
[White "MikeSailer"]
[Black "Midgardsormur"]
[Result "0-1"]
[WhiteElo "2187"]
[BlackElo "2459"]
[TimeControl "180+1"]
[EndTime "14:38:18 PST"]
[Termination "Midgardsormur won on time"]

1. d4 {[%clk 0:03:00.5]} 1... Nf6 {[%clk 0:02:59.8]} 2. Nf3 {[%clk 0:02:59.6]}
2... e6 {[%clk 0:02:59.6]} 3. Bf4 {[%clk 0:02:59.9]} 3... c5 {[%clk 0:02:59.6]}
4. e3 {[%clk 0:03:00.4]} 4... d5 {[%clk 0:02:59.7]} 5. Nc3 {[%clk 0:02:58.8]}
5... cxd4 {[%clk 0:02:58.6]} 6. exd4 {[%clk 0:02:58.9]} 6... a6 {[%clk
0:02:58.7]} 7. a3 {[%clk 0:02:57.5]} 7... Nc6 {[%clk 0:02:58.3]} 8. Bd3 {[%clk
0:02:55.5]} 8... Bd6 {[%clk 0:02:56.9]} 9. Qd2 {[%clk 0:02:48]} 9... Qc7 {[%clk
0:02:53.2]} 10. Bxd6 {[%clk 0:02:47.6]} 10... Qxd6 {[%clk 0:02:54.1]} 11. O-O
{[%clk 0:02:47.9]} 11... O-O {[%clk 0:02:53.1]} 12. Rfe1 {[%clk 0:02:47.9]}
12... b5 {[%clk 0:02:51.8]} 13. Ne2 {[%clk 0:02:38.3]} 13... Rb8 {[%clk
0:02:50]} 14. c3 {[%clk 0:02:38.4]} 14... a5 {[%clk 0:02:49.8]} 15. Ne5 {[%clk
0:02:09.7]} 15... Ne7 {[%clk 0:02:05.3]} 16. Ng3 {[%clk 0:01:56.8]} 16... Qc7
{[%clk 0:01:49.3]} 17. f4 {[%clk 0:01:55.5]} 17... Nf5 {[%clk 0:01:48.4]} 18.
Nxf5 {[%clk 0:01:50.2]} 18... exf5 {[%clk 0:01:49.3]} 19. Rac1 {[%clk
0:01:46.2]} 19... Be6 {[%clk 0:01:47]} 20. Re3 {[%clk 0:01:43.2]} 20... Rfc8
{[%clk 0:01:43.1]} 21. Bb1 {[%clk 0:00:57.6]} 21... b4 {[%clk 0:01:41.6]} 22.
axb4 {[%clk 0:00:47]} 22... axb4 {[%clk 0:01:41.5]} 23. h3 {[%clk 0:00:36.9]}
23... bxc3 {[%clk 0:01:39.2]} 24. Rexc3 {[%clk 0:00:36.8]} 24... Qb7 {[%clk
0:01:39.5]} 25. Rxc8+ {[%clk 0:00:33.4]} 25... Rxc8 {[%clk 0:01:40.4]} 26. Rxc8+
{[%clk 0:00:18.3]} 26... Qxc8 {[%clk 0:01:41.3]} 27. Qc3 {[%clk 0:00:18.3]}
27... Qb8 {[%clk 0:01:36.9]} 28. b4 {[%clk 0:00:06.6]} 28... g6 {[%clk 0:01:35]}
29. Qc5 {[%clk 0:00:05.7]} 29... Nd7 {[%clk 0:01:20.3]} 30. Nxd7 {[%clk
0:00:05.4]} 30... Bxd7 {[%clk 0:01:21.2]} 31. Bd3 {[%clk 0:00:04]} 31... Qxf4
{[%clk 0:01:20.7]} 32. b5 {[%clk 0:00:01.7]} 32... Qe3+ {[%clk 0:01:20.3]} 33.
Kh1 {[%clk 0:00:01.7]} 33... Qxd3 {[%clk 0:01:18.9]} 34. b6 {[%clk 0:00:02.3]}
34... Qa6 {[%clk 0:01:10.7]} 0-1

[Event "Late-Titled-Tuesday-Blitz-March-05-2024"]
[Site "Chess.com"]
[Date "2024.03.05"]
[Round "4"]
[White "Alphafischer2019"]
[Black "WindWhistler11"]
[Result "1-0"]
[WhiteElo "2728"]
[BlackElo "2546"]
[TimeControl "180+1"]
[EndTime "14:38:21 PST"]
[Termination "Alphafischer2019 won on time"]

1. e4 {[%clk 0:03:00.9]} 1... e6 {[%clk 0:02:59.6]} 2. d4 {[%clk 0:02:58.2]}
2... d5 {[%clk 0:02:59.8]} 3. Nd2 {[%clk 0:02:58.9]} 3... Nf6 {[%clk 0:02:57.4]}
4. e5 {[%clk 0:02:58.6]} 4... Nfd7 {[%clk 0:02:58.2]} 5. Ngf3 {[%clk 0:02:58.6]}
5... c5 {[%clk 0:02:58.9]} 6. c3 {[%clk 0:02:59.1]} 6... Nc6 {[%clk 0:02:59.6]}
7. Bd3 {[%clk 0:02:59.4]} 7... cxd4 {[%clk 0:02:57.6]} 8. cxd4 {[%clk
0:03:00.3]} 8... f6 {[%clk 0:02:57.9]} 9. exf6 {[%clk 0:02:58.9]} 9... Qxf6
{[%clk 0:02:58.8]} 10. O-O {[%clk 0:02:54.8]} 10... Bd6 {[%clk 0:02:49]} 11. Re1
{[%clk 0:02:49]} 11... O-O {[%clk 0:02:46]} 12. Bxh7+ {[%clk 0:02:48.7]} 12...
Kh8 {[%clk 0:02:37.1]} 13. Nb3 {[%clk 0:02:39.9]} 13... e5 {[%clk 0:02:28.4]}
14. Bg5 {[%clk 0:02:26.3]} 14... Qf7 {[%clk 0:02:21.9]} 15. Be3 {[%clk
0:02:15.7]} 15... Nf6 {[%clk 0:01:55.2]} 16. Ng5 {[%clk 0:02:02.6]} 16... Qc7
{[%clk 0:01:49.4]} 17. Bg6 {[%clk 0:01:58.9]} 17... e4 {[%clk 0:01:41.9]} 18. h3
{[%clk 0:01:56]} 18... Ne7 {[%clk 0:01:33.6]} 19. Nf7+ {[%clk 0:01:54]} 19...
Kg8 {[%clk 0:01:31.7]} 20. Nxd6 {[%clk 0:01:54]} 20... Nxg6 {[%clk 0:01:22.4]}
21. Nxc8 {[%clk 0:01:51.8]} 21... Raxc8 {[%clk 0:01:12.9]} 22. Rc1 {[%clk
0:01:51.5]} 22... Qd6 {[%clk 0:01:06.8]} 23. Qe2 {[%clk 0:01:49.6]} 23... a6
{[%clk 0:00:55.9]} 24. Nc5 {[%clk 0:01:48.6]} 24... Rc7 {[%clk 0:00:53.8]} 25.
Rc3 {[%clk 0:01:43.2]} 25... Ne7 {[%clk 0:00:27.4]} 26. Qd2 {[%clk 0:01:35.7]}
26... Nh5 {[%clk 0:00:22.5]} 27. Bg5 {[%clk 0:01:30.3]} 27... Qg6 {[%clk
0:00:17.5]} 28. Nxe4 {[%clk 0:01:27.3]} 28... Rxc3 {[%clk 0:00:10.2]} 29. Nxc3
{[%clk 0:01:27.2]} 29... Nc6 {[%clk 0:00:05.3]} 30. Nxd5 {[%clk 0:01:27]} 30...
Kh7 {[%clk 0:00:04.9]} 31. h4 {[%clk 0:01:25]} 31... Qd6 {[%clk 0:00:03.8]} 32.
Qd3+ {[%clk 0:01:24.5]} 32... Kh8 {[%clk 0:00:03.4]} 33. Ne7 {[%clk 0:01:24.7]}
33... Nxd4 {[%clk 0:00:03.5]} 34. Ng6+ {[%clk 0:01:24.2]} 34... Kg8 {[%clk
0:00:04]} 35. Nxf8 {[%clk 0:01:09.5]} 1-0

[Event "Late-Titled-Tuesday-Blitz-March-05-2024"]
[Site "Chess.com"]
[Date "2024.03.05"]
[Round "4"]
[White "WilsonPalencia21"]
[Black "becemix"]
[Result "0-1"]
[WhiteElo "2566"]
[BlackElo "2461"]
[TimeControl "180+1"]
[EndTime "14:38:25 PST"]
[Termination "becemix won on time"]

1. d4 {[%clk 0:03:00.9]} 1... Nf6 {[%clk 0:02:52.7]} 2. c4 {[%clk 0:03:00.6]}
2... e6 {[%clk 0:02:48.7]} 3. Nf3 {[%clk 0:03:00.4]} 3... Bb4+ {[%clk
0:02:46.4]} 4. Nbd2 {[%clk 0:02:59.9]} 4... O-O {[%clk 0:02:26.6]} 5. a3 {[%clk
0:02:58.2]} 5... Be7 {[%clk 0:02:24.8]} 6. e4 {[%clk 0:02:57.7]} 6... d6 {[%clk
0:02:16.8]} 7. Qc2 {[%clk 0:02:56.9]} 7... Nc6 {[%clk 0:02:15.9]} 8. b4 {[%clk
0:02:34.6]} 8... e5 {[%clk 0:02:12.6]} 9. dxe5 {[%clk 0:02:31.2]} 9... Nxe5
{[%clk 0:02:13.5]} 10. Nxe5 {[%clk 0:02:26.1]} 10... dxe5 {[%clk 0:02:14.4]} 11.
Bb2 {[%clk 0:02:25]} 11... a5 {[%clk 0:02:10.9]} 12. c5 {[%clk 0:02:24.7]} 12...
axb4 {[%clk 0:02:10.2]} 13. a4 {[%clk 0:02:25.4]} 13... Nd7 {[%clk 0:02:02.7]}
14. Nb3 {[%clk 0:02:22.7]} 14... Re8 {[%clk 0:01:55.1]} 15. Qc4 {[%clk
0:01:57.6]} 15... b6 {[%clk 0:01:41.6]} 16. c6 {[%clk 0:01:40.5]} 16... Nc5
{[%clk 0:01:39.5]} 17. Rd1 {[%clk 0:01:38.6]} 17... Bd6 {[%clk 0:01:33.9]} 18.
Nxc5 {[%clk 0:01:00.6]} 18... bxc5 {[%clk 0:01:34.8]} 19. Qc2 {[%clk 0:01:00.4]}
19... Be6 {[%clk 0:01:34.2]} 20. Bb5 {[%clk 0:00:59.9]} 20... c4 {[%clk
0:01:32]} 21. Bxe5 {[%clk 0:00:46.6]} 21... Bxe5 {[%clk 0:01:07.7]} 22. Rxd8
{[%clk 0:00:45.5]} 22... Rexd8 {[%clk 0:01:08]} 23. Ke2 {[%clk 0:00:18.2]} 23...
b3 {[%clk 0:01:05]} 24. Qc1 {[%clk 0:00:16.3]} 24... c3 {[%clk 0:01:05.1]} 25.
Rd1 {[%clk 0:00:13.1]} 25... c2 {[%clk 0:01:04.9]} 26. Rxd8+ {[%clk 0:00:10.6]}
26... Rxd8 {[%clk 0:01:05.8]} 27. Bd3 {[%clk 0:00:10.7]} 27... Rb8 {[%clk
0:00:55.9]} 28. Bxc2 {[%clk 0:00:10.2]} 28... bxc2 {[%clk 0:00:54.9]} 29. Qxc2
{[%clk 0:00:10.6]} 29... Rb2 {[%clk 0:00:55.3]} 30. Qxb2 {[%clk 0:00:07]} 30...
Bxb2 {[%clk 0:00:56.2]} 31. Kd3 {[%clk 0:00:07.5]} 31... Bc8 {[%clk 0:00:54.9]}
0-1